bitfinex-derivatives/quotes_SOLF0:USTF0_20240911
["timestamp","ask_amount","ask_price","bid_price","bid_amount"]
[1726013961079,9.05,135.48,135.42,9.05]
[1726013961275,9.05,135.48,135.43,3.75276307]
[1726013961979,9.05,135.48,135.42,12.7419]
[1726013962179,9.05,135.48,135.43,3.6331472]
[1726013962679,1.3236,135.5,135.44,9.05]
[1726013962874,9.05,135.51,135.45,9.05]
[1726013966284,116.70008087,135.53,135.45,9.05]
[1726013966479,116.70008087,135.53,135.48,9.05]
[1726013966685,9.05,135.52,135.45,1.404]
[1726013966885,9.05,135.52,135.46,9.05]
[1726013967787,125.75008087,135.53,135.47,9.05]
[1726013968582,116.70008087,135.53,135.47,9.05]
[1726013968788,116.70008087,135.53,135.49,9.05]
[1726013969086,125.75008087,135.53,135.47,12.7404]
[1726013969278,125.75008087,135.53,135.47,9.05]
[1726013970788,125.75008087,135.53,135.46,3.6908]
[1726013970994,125.75008087,135.53,135.47,9.05]
[1726013973481,125.75008087,135.53,135.45,5.095]
[1726013973786,125.75008087,135.53,135.46,9.05]
[1726013974792,116.70008087,135.53,135.46,12.7408]
[1726013974986,116.70008087,135.53,135.48,9.05]
[1726013977195,116.70008087,135.53,135.49,9.05]
[1726013986391,116.70008087,135.53,135.49,12.7399]
[1726013989700,116.70008087,135.53,135.5,9.05]
[1726013993602,3.65843161,135.61,135.5,9.05]
[1726013993901,224.0,135.64,135.45,1.404]
[1726013993902,9.05,135.59,135.53,9.05]
[1726013994795,3.9173,135.6,135.53,9.05]
[1726013994998,9.05,135.59,135.53,9.05]
[1726013996596,3.9173,135.6,135.53,12.7389]
[1726013996799,9.05,135.59,135.53,9.05]
[1726013997901,9.05,135.59,135.51,3.66059204]
[1726013998107,9.05,135.58,135.53,9.05]
[1726014000911,9.05,135.58,135.51,3.73541977]
[1726014001216,9.05,135.54,135.48,9.05]
[1726014004108,9.05,135.54,135.45,5.0951]
[1726014004417,1.2918,135.53,135.47,9.05]
[1726014007310,10.3418,135.53,135.47,9.05]
[1726014010917,10.3418,135.53,135.48,9.05]
[1726014012716,1.2918,135.53,135.48,9.05]
[1726014014618,10.3418,135.53,135.47,9.05]
[1726014020335,9.05,135.52,135.45,1.404]
[1726014020538,9.05,135.52,135.45,10.454]
[1726014023832,9.05,135.52,135.45,9.05]
[1726014024139,9.05,135.51,135.44,10.4047]
[1726014027238,9.05,135.51,135.45,9.05]
[1726014036444,9.05,135.51,135.44,1.3547]
[1726014036649,9.05,135.49,135.43,2.6615]
[1726014037041,9.05,135.49,135.43,11.7115]
[1726014037746,9.05,135.49,135.44,9.05]
[1726014037952,1.2918,135.53,135.44,9.05]
[1726014038146,9.05,135.51,135.44,9.05]
[1726014040849,9.05,135.5,135.44,9.05]
[1726014041845,1.2918,135.53,135.44,12.7413]
[1726014042049,10.3418,135.53,135.47,9.05]
[1726014051159,3.70985415,135.54,135.47,9.05]
[1726014051365,3.70985415,135.54,135.43,7.63470007]
[1726014051366,2.758,135.6,135.48,9.05]
[1726014051564,4.0558,135.6,135.51,9.05]
[1726014051761,9.05,135.57,135.51,9.05]
[1726014051961,9.05,135.57,135.52,9.05]
[1726014056567,9.05,135.58,135.53,9.05]
[1726014056767,11.808,135.6,135.53,9.05]
[1726014056963,9.05,135.6,135.53,9.05]
[1726014057168,9.05,135.6,135.55,9.05]
[1726014057661,9.05,135.61,135.55,9.05]
[1726014058260,4.0069,135.64,135.55,9.05]
[1726014058465,9.05,135.62,135.55,9.05]
[1726014058670,9.05,135.62,135.56,9.05]
[1726014059569,9.05,135.61,135.55,9.05]
[1726014060365,9.05,135.58,135.5,3.65995283]
[1726014060683,15.85674209,135.62,135.44,3.9473]
[1726014060684,9.05,135.57,135.44,3.9473]
[1726014060874,9.05,135.54,135.44,7.68955206]
[1726014061075,9.05,135.52,135.44,7.68955206]
[1726014061283,9.05,135.52,135.46,9.05]
[1726014064366,9.05,135.52,135.44,3.9473]
[1726014064572,9.05,135.52,135.45,9.05]
[1726014064767,9.05,135.49,135.39,3.6927]
[1726014064972,9.05,135.49,135.43,9.05]
[1726014067491,9.05,135.46,135.4,1.3409]
[1726014067675,9.05,135.46,135.4,10.3909]
[1726014067878,9.05,135.46,135.42,9.05]
[1726014068482,9.05,135.47,135.42,9.05]
[1726014069886,9.05,135.47,135.37,2.7695]
[1726014070081,9.05,135.46,135.39,9.05]
[1726014071583,9.05,135.46,135.38,3.6931]
[1726014071787,9.05,135.46,135.4,9.05]
[1726014073686,9.05,135.46,135.37,2.7695]
[1726014073883,9.05,135.46,135.39,9.05]
[1726014074086,9.05,135.46,135.4,9.05]
[1726014074587,9.05,135.47,135.4,9.05]
[1726014078289,9.05,135.43,135.37,1.387]
[1726014078488,9.05,135.43,135.37,10.437]
[1726014078991,9.05,135.43,135.37,11.8297]
[1726014079190,15.85674209,135.51,135.37,2.7797]
[1726014079387,9.05,135.43,135.37,11.8297]
[1726014079694,2.6782,135.47,135.37,11.8297]
[1726014079992,9.05,135.44,135.37,11.8297]
[1726014082293,9.05,135.42,135.36,9.05]
[1726014083081,9.05,135.41,135.35,9.05]
[1726014084487,119.43491392,135.47,135.36,9.05]
[1726014084683,9.05,135.43,135.36,9.05]
[1726014085287,119.43491392,135.47,135.37,9.05]
[1726014085485,119.43491392,135.47,135.39,9.05]
[1726014085486,9.05,135.45,135.39,9.05]
[1726014086488,9.05,135.46,135.4,9.05]
[1726014087394,9.05,135.46,135.34,2.6343]
[1726014087395,128.48491392,135.47,135.41,9.05]
[1726014088488,127.17711392,135.47,135.41,9.05]
[1726014088688,9.05,135.46,135.39,9.05]
[1726014090199,9.05,135.46,135.39,12.7426]
[1726014090905,9.05,135.46,135.39,3.6926]
[1726014091097,9.05,135.46,135.34,2.6343]
[1726014091304,9.05,135.46,135.39,9.05]
[1726014092299,9.05,135.46,135.39,12.7428]
[1726014092701,9.05,135.46,135.39,3.6928]
[1726014092900,9.05,135.46,135.4,9.05]
[1726014096502,9.05,135.44,135.34,2.6343]
[1726014096703,9.05,135.45,135.38,9.05]
[1726014098303,9.05,135.45,135.39,3.6928]
[1726014099103,1.3704,135.47,135.4,12.7424]
[1726014099400,9.05,135.46,135.4,9.05]
[1726014099997,9.05,135.46,135.4,12.7424]
[1726014102599,1.3704,135.47,135.4,12.7424]
[1726014102797,9.05,135.46,135.4,12.7424]
[1726014104708,9.05,135.46,135.41,3.6922]
[1726014105512,9.05,135.46,135.4,12.7424]
[1726014106012,9.05,135.46,135.4,16.41428864]
[1726014106214,1.3704,135.47,135.4,16.41428864]
[1726014106414,9.05,135.46,135.4,16.41428864]
[1726014106614,9.05,135.46,135.41,12.7422]
[1726014106819,118.06218664,135.5,135.42,9.05]
[1726014107117,9.05,135.49,135.42,9.05]
[1726014107305,9.05,135.49,135.42,12.7418]
[1726014108910,9.05,135.49,135.44,9.05]
[1726014116625,116.72838664,135.5,135.44,9.05]
[1726014116822,116.72838664,135.5,135.45,9.05]
[1726014117224,116.72838664,135.5,135.45,12.741]
[1726014117625,116.72838664,135.5,135.45,9.05]
[1726014123321,1.3922,135.54,135.45,9.05]
[1726014123523,1.09933934,135.53,135.45,9.05]
[1726014123724,9.05,135.5,135.45,9.05]
[1726014123935,9.05,135.5,135.42,4.0521]
[1726014124228,9.05,135.49,135.42,13.1021]
[1726014127521,9.05,135.49,135.42,4.0521]
[1726014127726,9.05,135.49,135.42,13.1021]
[1726014130531,9.05,135.49,135.42,16.794]
[1726014132735,9.05,135.49,135.43,9.05]
[1726014133237,9.05,135.49,135.43,12.7417]
[1726014133537,9.05,135.5,135.45,9.05]
[1726014135032,1.3922,135.54,135.45,9.05]
[1726014135228,9.05,135.52,135.46,9.05]
[1726014136444,9.05,135.51,135.45,9.05]
[1726014141542,9.05,135.49,135.42,4.0521]
[1726014141745,9.05,135.49,135.42,13.1021]
[1726014141947,9.05,135.48,135.42,13.1021]
[1726014142141,9.05,135.48,135.42,16.7941]
[1726014142440,9.05,135.48,135.42,4.0521]
[1726014143845,1.3922,135.54,135.42,13.1021]
[1726014144040,9.05,135.49,135.42,13.1021]
[1726014144439,9.05,135.48,135.42,16.794]
[1726014144742,9.05,135.48,135.42,13.1021]
[1726014145140,1.3922,135.54,135.42,16.7941]
[1726014145337,9.05,135.49,135.42,16.7941]
[1726014152150,9.05,135.49,135.42,7.7441]
[1726014152350,9.05,135.49,135.42,16.7941]
[1726014154149,9.05,135.47,135.42,13.1021]
[1726014160254,9.05,135.47,135.42,4.0521]
[1726014170054,9.05,135.47,135.42,2.7681]
[1726014187174,9.05,135.48,135.42,6.46]
[1726014187370,9.05,135.48,135.42,15.51]
[1726014188065,1.3533,135.5,135.42,15.51]
[1726014188266,9.05,135.48,135.42,15.51]
[1726014189071,9.05,135.48,135.42,6.46]
[1726014189286,9.05,135.48,135.42,15.51]
[1726014191273,9.05,135.47,135.42,2.7681]
[1726014191971,9.05,135.47,135.41,1.329]
[1726014193672,9.05,135.47,135.41,5.0212]
[1726014194065,9.05,135.48,135.42,9.05]
[1726014196968,9.05,135.46,135.41,1.329]
[1726014197170,9.05,135.45,135.35,2.7176]
[1726014197376,9.05,135.45,135.38,9.05]
[1726014198373,9.05,135.45,135.38,12.7429]
[1726014200273,5.03717847,135.49,135.38,12.7429]
[1726014200477,9.05,135.45,135.38,12.7429]
[1726014204478,9.05,135.45,135.38,3.6929]
[1726014204875,9.05,135.45,135.39,9.05]
[1726014207083,9.05,135.45,135.37,3.6933]
[1726014207286,9.05,135.43,135.36,1.3906]
[1726014207475,9.05,135.43,135.36,10.4406]
[1726014207873,5.03717847,135.49,135.36,14.1341]
[1726014208074,9.05,135.43,135.36,14.1341]
[1726014208278,9.05,135.43,135.36,5.0841]
[1726014208575,9.05,135.43,135.37,9.05]
[1726014209480,9.05,135.43,135.37,12.7433]
[1726014210678,1.3444,135.47,135.38,9.05]
[1726014210885,9.05,135.44,135.38,9.05]
[1726014211480,9.05,135.44,135.38,3.6929]
[1726014211680,9.05,135.44,135.38,12.7429]
[1726014212483,1.3444,135.47,135.38,12.7429]
[1726014212673,9.05,135.44,135.38,12.7429]
[1726014214386,9.05,135.44,135.37,3.6931]
[1726014214780,9.05,135.44,135.37,12.7431]
[1726014216884,9.05,135.43,135.36,5.0841]
[1726014217085,9.05,135.43,135.36,14.1341]
[1726014217779,9.05,135.44,135.37,9.05]
[1726014219390,9.05,135.43,135.37,9.05]
[1726014219981,9.05,135.43,135.37,12.7432]
[1726014223894,9.05,135.42,135.36,5.084]
[1726014224097,9.05,135.42,135.36,1.3906]
[1726014224580,9.05,135.42,135.36,14.1342]
[1726014224786,9.05,135.43,135.37,9.05]
[1726014225291,9.05,135.43,135.38,3.6931]
[1726014225488,1.3444,135.47,135.38,3.6931]
[1726014226087,9.05,135.44,135.38,3.6931]
[1726014228694,1.3444,135.47,135.38,3.6931]
[1726014228894,9.05,135.44,135.38,3.6931]
[1726014229494,1.3444,135.47,135.38,3.6931]
[1726014229694,9.05,135.44,135.38,3.6931]
[1726014231394,1.3444,135.47,135.38,12.7431]
[1726014231582,1.3444,135.47,135.39,3.6928]
[1726014231786,9.05,135.44,135.39,3.6928]
[1726014232597,9.05,135.44,135.38,3.693]
[1726014233098,9.05,135.44,135.38,12.743]
[1726014233489,9.05,135.44,135.38,3.693]
[1726014233999,9.05,135.44,135.38,12.743]
[1726014239004,1.3444,135.47,135.38,12.743]
[1726014239307,9.05,135.44,135.38,12.743]
[1726014239494,116.75233627,135.46,135.38,12.743]
[1726014239697,116.75233627,135.46,135.41,9.05]
[1726014240090,116.75233627,135.46,135.41,12.7422]
[1726014241000,1.3038,135.49,135.42,9.05]
[1726014241196,10.3538,135.49,135.42,9.05]
[1726014242298,1.3533,135.5,135.42,9.05]
[1726014242299,1.3533,135.5,135.43,9.05]
[1726014242495,10.4033,135.5,135.43,9.05]
[1726014243200,9.05,135.49,135.43,9.05]
[1726014244200,1.3533,135.5,135.43,9.05]
[1726014244401,9.05,135.49,135.43,9.05]
[1726014245004,9.05,135.49,135.42,9.05]
[1726014245200,9.05,135.47,135.42,9.05]
[1726014247000,9.05,135.46,135.41,13.0289]
[1726014247200,9.05,135.46,135.41,11.7533]
[1726014251315,3.69101259,135.49,135.41,11.7533]
[1726014251517,17.18889332,135.5,135.41,11.7533]
[1726014251814,9.05,135.48,135.42,9.05]
[1726014252613,9.05,135.46,135.41,11.7533]
[1726014253518,9.05,135.46,135.41,2.7033]
[1726014253717,9.05,135.46,135.41,11.7533]
[1726014253913,9.05,135.46,135.41,2.7033]
[1726014254918,3.72072989,135.49,135.41,2.7033]
[1726014255107,9.05,135.47,135.41,2.7033]
[1726014257019,9.05,135.45,135.39,9.05]
[1726014262922,9.05,135.45,135.4,9.05]
[1726014264223,9.05,135.47,135.4,9.05]
[1726014269031,9.05,135.45,135.4,9.05]
[1726014269630,9.05,135.45,135.39,3.6927]
[1726014269829,9.05,135.45,135.39,12.7427]
[1726014271438,9.05,135.45,135.39,9.05]
[1726014271735,9.05,135.45,135.38,9.05]
[1726014272129,3.60688432,135.48,135.39,9.05]
[1726014272332,9.05,135.46,135.39,9.05]
[1726014272733,9.05,135.46,135.39,12.7427]
[1726014276434,9.05,135.46,135.38,3.693]
[1726014276635,9.05,135.46,135.39,9.05]
[1726014277744,9.05,135.44,135.35,2.6533]
[1726014278032,9.05,135.44,135.38,9.05]
[1726014278539,9.05,135.44,135.38,12.7429]
[1726014280036,9.05,135.44,135.38,3.6929]
[1726014280242,3.67252921,135.48,135.39,13.2118]
[1726014280243,9.05,135.46,135.39,13.2118]
[1726014283138,9.05,135.46,135.39,4.1618]
[1726014283336,9.05,135.46,135.39,13.2118]
[1726014285733,9.05,135.46,135.39,4.1618]
[1726014285929,9.05,135.46,135.39,13.2118]
[1726014286335,9.05,135.46,135.4,3.61196055]
[1726014286535,3.61286364,135.48,135.4,12.66196055]
[1726014286739,9.05,135.46,135.4,12.66196055]
[1726014286933,9.05,135.43,135.25,42.48233687]
[1726014287135,9.05,135.41,135.34,3.9379]
[1726014287338,9.05,135.41,135.35,12.76795571]
[1726014290533,9.05,135.41,135.35,9.05]
[1726014293349,9.05,135.4,135.35,9.05]
[1726014293543,9.05,135.36,135.21,10.82745825]
[1726014293748,9.05,135.36,135.29,9.05]
[1726014294049,9.05,135.36,135.29,16.41921065]
[1726014294341,9.05,135.36,135.3,9.05]
[1726014294739,9.05,135.36,135.3,12.69895817]
[1726014297747,9.05,135.37,135.32,9.05]
[1726014299441,2.7133,135.42,135.32,9.05]
[1726014299642,9.05,135.39,135.32,9.05]
[1726014299838,9.05,135.39,135.32,11.743]
[1726014300250,9.05,135.39,135.32,15.4377]
[1726014300453,9.05,135.37,135.32,11.743]
[1726014300752,2.7133,135.42,135.32,11.743]
[1726014300947,9.05,135.4,135.32,2.693]
[1726014301251,9.05,135.4,135.34,9.05]
[1726014301643,1.3062,135.43,135.36,9.05]
[1726014301842,9.05,135.42,135.36,9.05]
[1726014302044,9.05,135.41,135.36,9.05]
[1726014305859,9.05,135.41,135.34,3.694]
[1726014306048,9.05,135.41,135.33,3.6943]
[1726014306248,9.05,135.41,135.34,9.05]
[1726014307955,9.05,135.41,135.34,12.7441]
[1726014309967,1.3062,135.43,135.37,9.05]
[1726014310258,9.05,135.44,135.38,9.05]
[1726014311162,116.75677592,135.47,135.39,9.05]
[1726014311549,116.75677592,135.47,135.41,9.05]
[1726014311750,9.05,135.46,135.41,9.05]
[1726014313059,116.75677592,135.47,135.38,5.0632]
[1726014313060,9.05,135.45,135.39,9.05]
[1726014313460,9.05,135.45,135.38,1.3703]
[1726014313666,118.14671227,135.48,135.38,1.3703]
[1726014313667,9.05,135.43,135.38,1.3703]
[1726014316957,9.05,135.42,135.38,1.3703]
[1726014320265,9.05,135.43,135.38,1.3703]
[1726014321361,9.05,135.42,135.37,2.704]
[1726014325064,9.05,135.42,135.37,1.4116]
[1726014326462,9.05,135.42,135.36,9.05]
[1726014327870,9.05,135.4,135.33,5.0234]
[1726014328061,15.80734792,135.47,135.36,9.05]
[1726014328268,9.05,135.42,135.36,9.05]
[1726014331772,15.80734792,135.47,135.36,9.05]
[1726014331973,1.09704003,135.46,135.36,9.05]
[1726014332264,9.05,135.42,135.36,9.05]
[1726014332965,9.05,135.42,135.33,1.329]
[1726014333166,9.05,135.42,135.35,9.05]
[1726014337074,9.05,135.4,135.35,9.05]
[1726014340170,15.80734792,135.47,135.35,12.7439]
[1726014340371,15.80734792,135.47,135.39,9.05]
[1726014340578,9.05,135.46,135.4,9.05]
[1726014350486,9.05,135.46,135.38,6.32062885]
[1726014350487,9.05,135.45,135.39,9.05]
[1726014351581,118.14671227,135.48,135.4,9.05]
[1726014351886,9.05,135.47,135.42,9.05]
[1726014353887,118.14671227,135.48,135.42,9.05]
[1726014354081,127.19671227,135.48,135.42,9.05]
[1726014354880,116.74161227,135.48,135.42,9.05]
[1726014355084,125.79161227,135.48,135.42,9.05]
[1726014358995,125.79161227,135.48,135.39,1.2752]
[1726014358996,116.74161227,135.48,135.43,9.05]
[1726014359293,116.74161227,135.48,135.44,9.05]
[1726014360700,116.74161227,135.48,135.43,9.05]
[1726014360987,116.74161227,135.48,135.39,1.2752]
[1726014361188,125.79161227,135.48,135.42,9.05]
[1726014361589,125.79161227,135.48,135.39,4.9678]
[1726014361896,125.79161227,135.48,135.41,9.05]
[1726014362288,125.79161227,135.48,135.39,4.9678]
[1726014362489,125.79161227,135.48,135.41,9.05]
[1726014362995,9.05,135.47,135.41,9.05]
[1726014364396,9.05,135.45,135.4,9.05]
[1726014365793,9.05,135.45,135.39,10.3252]
[1726014366395,9.05,135.44,135.39,10.3252]
[1726014368600,9.05,135.44,135.39,1.2752]
[1726014368993,9.05,135.43,135.35,3.6938]
[1726014369301,9.05,135.41,135.32,2.6805]
[1726014369494,9.05,135.41,135.35,9.05]
[1726014369689,9.05,135.41,135.36,9.05]
[1726014369890,9.05,135.43,135.38,9.05]
[1726014371004,1.3989,135.46,135.38,9.05]
[1726014371205,1.3989,135.46,135.39,9.05]
[1726014371206,9.05,135.45,135.39,9.05]
[1726014371600,9.05,135.44,135.38,2.7209]
[1726014372099,2.647,135.47,135.38,11.7709]
[1726014372300,9.05,135.44,135.38,11.7709]
[1726014373199,9.05,135.44,135.38,2.7209]
[1726014373504,9.05,135.44,135.38,11.7709]
[1726014374894,9.05,135.44,135.35,3.6938]
[1726014374895,9.05,135.43,135.36,9.05]
[1726014375092,9.05,135.41,135.36,9.05]
[1726014375294,9.05,135.41,135.34,2.7884]
[1726014375497,9.05,135.41,135.35,9.05]
[1726014376098,9.05,135.41,135.34,2.7884]
[1726014376299,9.05,135.4,135.35,9.05]
[1726014378109,9.05,135.4,135.34,2.7884]
[1726014381015,9.05,135.37,135.22,7.3945]
[1726014381314,9.05,135.36,135.3,9.05]
[1726014381515,227.61054477,135.45,135.31,12.65479762]
[1726014381710,9.05,135.37,135.31,9.05]
[1726014381916,9.05,135.37,135.31,12.83472347]
[1726014388311,9.05,135.37,135.31,3.78472347]
[1726014388516,4.0828,135.4,135.31,3.78472347]
[1726014388715,9.05,135.37,135.31,3.78472347]
[1726014388916,4.0828,135.4,135.31,3.78472347]
[1726014389119,9.05,135.37,135.31,3.78472347]
[1726014397320,4.0828,135.4,135.31,3.78472347]
[1726014397516,9.05,135.37,135.31,3.78472347]
[1726014399818,9.05,135.37,135.3,1.3182]
[1726014400017,9.05,135.37,135.31,9.05]
[1726014408020,4.0828,135.4,135.31,8.98641351]
[1726014408228,9.05,135.36,135.31,8.98641351]
[1726014410120,9.05,135.36,135.3,5.10597995]
[1726014411320,9.05,135.34,135.29,9.05]
[1726014411520,9.05,135.34,135.28,3.75923373]
[1726014411718,9.05,135.33,135.26,2.6291]
[1726014412034,9.05,135.33,135.27,9.05]
[1726014412220,9.05,135.33,135.28,3.72375532]
[1726014414125,9.05,135.33,135.26,2.6291]
[1726014414431,9.05,135.33,135.26,11.6791]
[1726014415131,9.05,135.33,135.26,2.6291]
[1726014415432,9.05,135.33,135.26,11.6791]
[1726014416130,9.05,135.33,135.26,2.6291]
[1726014416332,9.05,135.33,135.26,11.6791]
[1726014417331,9.05,135.33,135.26,2.6291]
[1726014417526,9.05,135.31,135.26,2.6291]
[1726014417734,9.05,135.31,135.26,1.2809]
[1726014419734,9.05,135.32,135.26,1.2809]
[1726014420733,9.05,135.32,135.25,9.05]
[1726014421130,9.05,135.3,135.25,9.05]
[1726014421734,9.05,135.3,135.24,12.7468]
[1726014423238,9.05,135.29,135.23,1.3747]
[1726014423434,9.05,135.28,135.23,1.3747]
[1726014424137,9.05,135.28,135.21,3.71508792]
[1726014424337,9.05,135.28,135.21,9.05]
[1726014424540,4.1189,135.31,135.22,3.67058919]
[1726014424834,9.05,135.3,135.24,9.05]
[1726014425038,9.05,135.3,135.24,12.71763112]
[1726014425436,2.7313,135.31,135.24,12.71763112]
[1726014425637,2.7313,135.31,135.25,9.05]
[1726014425638,1.4034,135.31,135.25,9.05]
[1726014425834,1.4034,135.31,135.26,3.6961]
[1726014426135,9.05,135.32,135.25,9.05]
[1726014426926,9.05,135.32,135.25,12.7466]
[1726014427131,9.05,135.32,135.25,14.1118]
[1726014427938,9.05,135.31,135.25,10.4152]
[1726014428538,9.05,135.31,135.14,2.56]
[1726014428739,9.05,135.3,135.23,9.05]
[1726014428944,9.05,135.3,135.23,12.75203271]
[1726014429642,9.05,135.3,135.23,16.44913271]
[1726014430246,3.68355027,135.34,135.23,16.44913271]
[1726014430444,9.05,135.3,135.23,16.44913271]
[1726014430641,9.05,135.3,135.23,12.75203271]
[1726014433448,3.63269984,135.33,135.23,12.75203271]
[1726014433449,9.05,135.29,135.23,12.75203271]
[1726014433648,9.05,135.27,135.21,12.7477]
[1726014433848,9.05,135.27,135.22,3.62114354]
[1726014435438,9.05,135.27,135.22,3.6974]
[1726014435646,9.05,135.27,135.23,3.75572555]
[1726014436050,9.05,135.27,135.22,3.6974]
[1726014437049,9.05,135.27,135.23,3.6793639]
[1726014438347,9.05,135.27,135.22,3.6974]
[1726014438950,9.05,135.27,135.22,7.31278461]
[1726014440951,9.05,135.27,135.22,3.61538461]
[1726014441645,9.05,135.27,135.21,12.7475]
[1726014441847,9.05,135.27,135.21,9.05]
[1726014442246,9.05,135.27,135.22,7.47956612]
[1726014442452,9.05,135.27,135.22,3.6974]
[1726014442850,9.05,135.27,135.23,3.64941312]
[1726014443054,9.05,135.27,135.15,1.3467]
[1726014443256,9.05,135.27,135.2,9.05]
[1726014443457,9.05,135.27,135.2,12.75931952]
[1726014443652,9.05,135.27,135.22,9.05]
[1726014443958,9.05,135.27,135.22,12.7474]
[1726014444455,9.05,135.27,135.23,3.79031065]
[1726014444657,9.05,135.27,135.22,12.7474]
[1726014445155,9.05,135.27,135.23,3.74778106]
[1726014445357,9.05,135.27,135.22,12.7474]
[1726014445749,9.05,135.27,135.23,3.72263313]
[1726014445951,9.05,135.27,135.21,12.7476]
[1726014446357,9.05,135.27,135.22,3.73705621]
[1726014447256,9.05,135.27,135.2,3.6979]
[1726014447457,9.05,135.27,135.21,9.05]
[1726014448058,9.05,135.27,135.21,12.7477]
[1726014448951,9.05,135.26,135.2,3.63129363]
[1726014449157,9.05,135.26,135.2,9.05]
[1726014449356,9.05,135.26,135.21,3.72521915]
[1726014449953,1.3994,135.3,135.22,9.05]
[1726014450257,9.05,135.28,135.22,12.7473]
[1726014450859,9.05,135.27,135.22,9.05]
[1726014451058,9.05,135.27,135.21,9.05]
[1726014451257,9.05,135.27,135.15,1.3467]
[1726014451562,9.05,135.26,135.2,9.05]
[1726014451761,9.05,135.26,135.21,3.64285733]
[1726014452163,9.00678274,135.26,135.21,3.64285733]
[1726014452463,9.00678274,135.26,135.19,12.7481]
[1726014452859,9.00678274,135.26,135.19,16.48635493]
[1726014454562,9.00678274,135.26,135.19,7.43635493]
[1726014454751,9.00678274,135.26,135.19,16.48635493]
[1726014454953,9.00678274,135.26,135.19,12.78825493]
[1726014455561,9.00678274,135.26,135.19,16.48635493]
[1726014459461,9.00678274,135.26,135.19,12.78825493]
[1726014460268,9.00678274,135.26,135.19,16.48625493]
[1726014462569,9.00678274,135.26,135.2,3.698]
[1726014462972,9.00678274,135.26,135.2,12.748]
[1726014463170,9.00678274,135.26,135.2,9.05]
[1726014463869,9.00678274,135.26,135.2,12.7479]
[1726014464070,1.3994,135.3,135.2,12.7479]
[1726014464071,9.05,135.27,135.2,9.05]
[1726014464574,9.05,135.27,135.2,3.6979]
[1726014464873,9.05,135.25,135.19,12.78825493]
[1726014465273,9.05,135.25,135.19,16.48625493]
[1726014465676,9.05,135.25,135.19,12.78825493]
[1726014466572,9.05,135.25,135.2,3.698]
[1726014471481,9.05,135.25,135.19,16.48645493]
[1726014471779,9.05,135.25,135.19,12.78825493]
[1726014472477,9.05,135.24,135.19,3.73825493]
[1726014472778,1.3994,135.3,135.22,9.05]
[1726014472779,9.05,135.29,135.22,9.05]
[1726014472974,9.05,135.29,135.22,12.741745]